bitfinex/quotes_BTCUSD_20240730
["timestamp","ask_amount","ask_price","bid_price","bid_amount"]
[1722331820434,0.00083,66979.0,66978.0,1.99398381]
[1722331821075,0.00083,66979.0,66978.0,1.97998381]
[1722331821409,0.00083,66979.0,66978.0,1.84128949]
[1722331821599,0.00083,66979.0,66978.0,1.82128949]
[1722331821801,0.02425255,66979.0,66978.0,1.83528949]
[1722331822307,0.00083,66979.0,66978.0,1.83528949]
[1722331822910,0.00083,66979.0,66978.0,1.85528949]
[1722331823666,0.00083,66979.0,66978.0,1.85728949]
[1722331823798,0.00083,66979.0,66978.0,1.85528949]
[1722331823998,0.00083,66979.0,66978.0,1.83528949]
[1722331824833,0.02425272,66979.0,66978.0,1.83528949]
[1722331825690,0.00083,66979.0,66978.0,1.81228949]
[1722331826255,0.00083,66979.0,66978.0,1.51368449]
[1722331827742,0.00083,66979.0,66978.0,1.20507949]
[1722331827938,0.00083,66979.0,66978.0,1.11283949]
[1722331828587,0.00083,66979.0,66978.0,1.03373949]
[1722331828792,0.07723,66979.0,66978.0,0.33652949]
[1722331828999,0.62958402,66979.0,66978.0,0.03659445]
[1722331829311,0.60615942,66979.0,66978.0,0.03659445]
[1722331829516,0.60615942,66979.0,66978.0,0.028913]
[1722331829517,0.90476042,66979.0,66978.0,0.028913]
[1722331830232,1.266833,66979.0,66978.0,0.028913]
[1722331830878,1.2929644,66979.0,66978.0,0.014913]
[1722331831079,1.38229783,66979.0,66978.0,0.000913]
[1722331831503,1.266833,66979.0,66978.0,0.014913]
[1722331831646,1.266833,66979.0,66978.0,0.024913]
[1722331832069,1.266833,66979.0,66978.0,0.000913]
[1722331832275,1.268833,66979.0,66978.0,0.000913]
[1722331832470,1.29226162,66979.0,66978.0,0.000913]
[1722331832715,1.266833,66979.0,66978.0,0.000913]
[1722331834330,1.53271612,66979.0,66978.0,0.000913]
[1722331834535,1.83131712,66979.0,66978.0,0.000913]
[1722331834769,1.71712832,66979.0,66978.0,0.000913]
[1722331834943,2.18555727,66979.0,66978.0,0.000913]
[1722331835144,2.15068068,66979.0,66978.0,0.000913]
[1722331835592,2.14168068,66979.0,66978.0,0.000913]
[1722331835801,2.15068068,66979.0,66978.0,0.000913]
[1722331836147,2.15068068,66979.0,66978.0,0.001913]
[1722331836148,2.17511315,66979.0,66978.0,0.001913]
[1722331836784,2.55687738,66979.0,66978.0,0.001913]
[1722331836979,2.55687738,66979.0,66959.0,0.000913]
[1722331836980,1.269097,66960.0,66959.0,0.000913]
[1722331837182,1.28334408,66960.0,66959.0,0.000913]
[1722331837435,1.30947347,66960.0,66959.0,0.000913]
[1722331837973,1.28334408,66960.0,66959.0,0.000913]
[1722331838181,1.30974204,66960.0,66959.0,0.000913]
[1722331838408,1.46043636,66960.0,66959.0,0.002913]
[1722331838938,1.30974204,66960.0,66959.0,0.002913]
[1722331839120,1.20694408,66960.0,66959.0,0.002913]
[1722331839326,1.20694408,66960.0,66959.0,0.008913]
[1722331840491,1.23037997,66960.0,66959.0,0.008913]
[1722331840991,1.20694408,66960.0,66959.0,0.008913]
[1722331844404,1.23037985,66960.0,66959.0,0.008913]
[1722331844628,1.20694408,66960.0,66959.0,0.008913]
[1722331847723,1.23037985,66960.0,66959.0,0.008913]
[1722331852231,1.37436676,66960.0,66959.0,0.008913]
[1722331855960,1.68305176,66960.0,66959.0,0.008913]
[1722331856189,1.70931276,66960.0,66959.0,0.008913]
[1722331856523,1.67587699,66960.0,66959.0,0.008913]
[1722331857663,1.67587699,66960.0,66959.0,0.002913]
[1722331857861,1.64961599,66960.0,66959.0,0.002913]
[1722331858105,1.67602699,66960.0,66959.0,0.002913]
[1722331858877,1.68002699,66960.0,66959.0,0.003913]
[1722331859169,1.69002699,66960.0,66959.0,0.003913]
[1722331859377,1.70338203,66960.0,66959.0,0.001913]
[1722331859937,1.70738203,66960.0,66959.0,0.001913]
[1722331860077,1.70338203,66960.0,66959.0,0.001913]
[1722331860557,2.00262963,66960.0,66959.0,0.002913]
[1722331860763,2.18441352,66960.0,66959.0,0.002913]
[1722331860965,2.18740383,66960.0,66959.0,0.002913]
[1722331861300,1.96521883,66960.0,66959.0,0.002913]
[1722331861496,2.17580099,66960.0,66959.0,0.002913]
[1722331861702,2.26451054,66960.0,66959.0,0.002913]
[1722331862118,1.75559502,66960.0,66959.0,0.002913]
[1722331862318,1.78883863,66960.0,66959.0,0.002913]
[1722331863526,1.81227724,66960.0,66959.0,0.002913]
[1722331863724,1.73571261,66960.0,66959.0,0.002913]
[1722331863900,1.712274,66960.0,66959.0,0.002913]
[1722331864104,1.788774,66960.0,66959.0,0.002913]
[1722331864984,1.93946832,66960.0,66959.0,0.002913]
[1722331865388,1.94946832,66960.0,66959.0,0.002913]
[1722331865754,1.93946832,66960.0,66959.0,0.002913]
[1722331866167,1.94946832,66960.0,66959.0,0.002913]
[1722331866372,1.96946832,66960.0,66959.0,0.002913]
[1722331866567,2.0159083,66960.0,66959.0,0.002913]
[1722331866768,2.3145933,66960.0,66959.0,0.002913]
[1722331867043,2.31476033,66960.0,66959.0,0.002913]
[1722331867795,2.29132035,66960.0,66959.0,0.002913]
[1722331870275,2.2025084,66960.0,66959.0,0.002913]
[1722331870447,2.29176686,66960.0,66959.0,0.002913]
[1722331870845,2.29178009,66960.0,66959.0,0.002913]
[1722331871052,2.01653448,66960.0,66959.0,0.002913]
[1722331871247,1.99653448,66960.0,66959.0,0.002913]
[1722331871448,1.97309509,66960.0,66959.0,0.002913]
[1722331871672,2.27178009,66960.0,66959.0,0.002913]
[1722331871811,1.97309509,66960.0,66959.0,0.002913]
[1722331872258,2.27178009,66960.0,66959.0,0.002913]
[1722331872652,2.29178009,66960.0,66959.0,0.002913]
[1722331873442,2.29178009,66960.0,66950.0,0.00924]
[1722331873443,0.327062,66951.0,66950.0,0.00924]
[1722331873648,0.605849,66942.0,66933.0,0.009251]
[1722331873853,1.71051479,66942.0,66933.0,0.009251]
[1722331874050,1.73395839,66942.0,66933.0,0.009251]
[1722331874254,1.88465271,66942.0,66933.0,0.009251]
[1722331874478,1.86120911,66942.0,66933.0,0.009251]
[1722331875636,1.86320911,66942.0,66933.0,0.009251]
[1722331876072,1.71251479,66942.0,66933.0,0.009251]
[1722331876673,1.68690195,66942.0,66933.0,0.009251]
[1722331876880,1.71338384,66942.0,66933.0,0.009251]
[1722331877109,1.73682747,66942.0,66933.0,0.009251]
[1722331877308,1.85472747,66942.0,66933.0,0.009251]
[1722331877507,2.00542179,66942.0,66933.0,0.009251]
[1722331877707,2.00242179,66942.0,66933.0,0.009251]
[1722331877907,1.97897816,66942.0,66933.0,0.009251]
[1722331878253,1.97697816,66942.0,66933.0,0.009251]
[1722331878640,1.98677423,66942.0,66933.0,0.009251]
[1722331879133,1.98577423,66942.0,66933.0,0.009251]
[1722331880142,1.801962,66940.0,66933.0,0.009251]
[1722331880347,2.0340141,66940.0,66933.0,0.009251]
[1722331880518,1.9846965,66940.0,66933.0,0.009251]
[1722331880726,2.10012801,66940.0,66933.0,0.009251]
[1722331880974,2.09012801,66940.0,66933.0,0.009251]
[1722331881172,2.15158064,66940.0,66933.0,0.009251]
[1722331881370,2.24081412,66940.0,66933.0,0.009251]
[1722331882143,2.26425893,66940.0,66933.0,0.009251]
[1722331882319,2.26713275,66940.0,66933.0,0.009251]
[1722331882525,2.26700514,66940.0,66933.0,0.009251]
[1722331882724,2.15546434,66940.0,66933.0,0.009251]
[1722331883115,2.11220795,66940.0,66933.0,0.009251]
[1722331883327,2.08613443,66940.0,66933.0,0.009251]
[1722331883652,2.11220794,66940.0,66933.0,0.009251]
[1722331884184,2.17379275,66940.0,66933.0,0.009251]
[1722331884903,2.20723756,66940.0,66933.0,0.009251]
[1722331885108,2.1990367,66940.0,66933.0,0.009251]
[1722331885392,2.17559189,66940.0,66933.0,0.009251]
[1722331885577,2.18559189,66940.0,66933.0,0.009251]
[1722331886692,2.09793357,66940.0,66933.0,0.009251]
[1722331886898,2.18600609,66940.0,66933.0,0.009251]
[1722331887230,2.17600609,66940.0,66933.0,0.009251]
[1722331888041,2.18600609,66940.0,66933.0,0.009251]
[1722331888262,2.34318905,66940.0,66933.0,0.009251]
[1722331888512,2.2094509,66940.0,66933.0,0.009251]
[1722331888971,2.2194509,66940.0,66933.0,0.009251]
[1722331889178,1.495404,66934.0,66933.0,0.009251]
[1722331889398,1.8147496,66934.0,66933.0,0.009251]
[1722331890171,1.81466202,66934.0,66933.0,0.009251]
[1722331890617,1.80467012,66934.0,66933.0,0.009251]
[1722331890861,1.81467012,66934.0,66933.0,0.011251]
[1722331891084,1.82392112,66934.0,66933.0,0.011251]
[1722331892193,1.82572026,66934.0,66933.0,0.011251]
[1722331892828,1.84916623,66934.0,66933.0,0.011251]
[1722331893064,1.82572026,66934.0,66933.0,0.011251]
[1722331893290,1.79948865,66934.0,66933.0,0.011251]
[1722331893535,1.82575354,66934.0,66933.0,0.011251]
[1722331894196,0.85374419,66934.0,66933.0,0.011251]
[1722331894394,0.89967651,66934.0,66933.0,0.011251]
[1722331894507,1.1092888,66934.0,66933.0,0.011251]
[1722331895122,0.8104878,66934.0,66933.0,0.011251]
[1722331895335,0.8104878,66934.0,66933.0,0.094351]
[1722331895613,0.79221371,66934.0,66933.0,0.094351]
[1722331895934,0.79221371,66934.0,66933.0,0.157251]
[1722331896374,0.77506603,66934.0,66933.0,0.157251]
[1722331896655,0.77732423,66934.0,66933.0,0.157251]
[1722331897006,0.92801855,66934.0,66933.0,0.157251]
[1722331897241,0.92801855,66934.0,66933.0,0.011251]
[1722331897242,1.00461855,66934.0,66933.0,0.011251]
[1722331897484,1.30341955,66934.0,66933.0,0.011251]
[1722331897687,1.39266027,66934.0,66933.0,0.011251]
[1722331898443,1.41494067,66934.0,66933.0,0.011251]
[1722331898648,1.43208835,66934.0,66933.0,0.011251]
[1722331898856,1.43208835,66934.0,66914.0,0.298888]
[1722331898857,1.32056723,66934.0,66921.0,0.070451]
[1722331899061,1.32056723,66934.0,66897.0,0.0299133]
[1722331899062,0.149442,66916.0,66911.0,0.149451]
[1722331899264,0.298872,66919.0,66911.0,0.149452]
[1722331899265,0.0766,66912.0,66911.0,0.149452]
[1722331899708,0.0766,66912.0,66908.0,0.37426116]
[1722331899709,0.0766,66912.0,66908.0,0.07534716]
[1722331899926,0.0766,66912.0,66911.0,0.00873945]
[1722331900170,0.0766,66912.0,66908.0,0.07534716]
[1722331900171,0.10004821,66912.0,66908.0,0.07534716]
[1722331900324,0.10004821,66912.0,66911.0,0.00873945]
[1722331900529,0.10004821,66912.0,66908.0,0.22480416]
[1722331900789,0.10004821,66912.0,66911.0,0.00873945]
[1722331901008,0.24949821,66912.0,66908.0,0.07534716]
[1722331901218,0.33422613,66912.0,66911.0,0.00873945]
[1722331901461,0.54939821,66912.0,66911.0,0.00873945]
[1722331901664,0.149456,66909.0,66908.0,0.07534716]
[1722331901871,0.226056,66909.0,66908.0,0.07534716]
[1722331902092,0.0766,66909.0,66908.0,0.20984716]
[1722331902305,0.15125114,66911.0,66908.0,0.20984716]
[1722331903399,0.001,66909.0,66908.0,0.20984716]
[1722331903700,0.149456,66909.0,66908.0,0.20984716]
[1722331904347,0.15125514,66909.0,66908.0,0.20984716]
[1722331904985,0.15225514,66909.0,66908.0,0.21484716]
[1722331905439,0.82668114,66909.0,66908.0,0.21484716]
[1722331905654,0.93923845,66909.0,66908.0,0.15944716]
[1722331906375,1.26293085,66909.0,66908.0,0.005]
[1722331906575,1.26293085,66909.0,66908.0,0.005913]
[1722331906798,1.15137354,66909.0,66908.0,0.005913]
[1722331907492,1.15037354,66909.0,66908.0,0.000913]
[1722331907709,1.21287354,66909.0,66908.0,0.000913]
[1722331907928,1.21487354,66909.0,66908.0,0.005913]
[1722331908136,1.23732567,66909.0,66908.0,0.005913]
[1722331908343,1.36612302,66909.0,66908.0,0.000913]
[1722331908549,1.23732567,66909.0,66908.0,0.000913]
[1722331908792,1.17482567,66909.0,66908.0,0.005913]
[1722331909734,1.17516051,66909.0,66908.0,0.005913]
[1722331910177,0.87624775,66909.0,66908.0,0.005913]
[1722331910437,0.87524775,66909.0,66908.0,0.000913]
[1722331910636,0.87524775,66909.0,66908.0,0.005913]
[1722331910839,0.87524775,66909.0,66908.0,0.08126016]
[1722331911272,0.79764775,66909.0,66908.0,0.07626016]
[1722331911543,0.79864775,66909.0,66908.0,0.08126016]
[1722331912186,0.79964775,66909.0,66908.0,0.08126016]
[1722331912409,0.79864775,66909.0,66908.0,0.08126016]
[1722331912661,0.92955702,66909.0,66908.0,0.08126016]
[1722331912850,1.0675889,66909.0,66908.0,0.005913]
[1722331912994,1.15575337,66909.0,66908.0,0.005913]
[1722331913197,1.04413677,66909.0,66908.0,0.005913]
[1722331913400,1.04313677,66909.0,66908.0,0.000913]
[1722331913667,1.00151713,66909.0,66908.0,0.000913]
[1722331913847,0.9142275,66909.0,66908.0,0.005913]
[1722331914230,0.9122275,66909.0,66908.0,0.000913]
[1722331914425,1.05434016,66909.0,66908.0,0.000913]
[1722331914627,1.05534016,66909.0,66908.0,0.005913]
[1722331916062,1.05463223,66909.0,66908.0,0.005913]
[1722331916606,0.77491957,66909.0,66908.0,0.005913]
[1722331917366,0.86420362,66909.0,66908.0,0.005913]
[1722331918392,0.88765528,66909.0,66908.0,0.005913]
[1722331919533,0.8879163,66909.0,66908.0,0.005913]
[1722331919745,0.88793324,66909.0,66908.0,0.005913]
[1722331919947,0.8881008,66909.0,66908.0,0.005913]
[1722331920510,0.79876723,66909.0,66908.0,0.005913]
[1722331921086,0.20094123,66909.0,66908.0,0.005913]
[1722331921282,0.29027964,66909.0,66908.0,0.005913]
[1722331921505,0.58919264,66909.0,66908.0,0.005913]
[1722331921686,0.88792679,66909.0,66908.0,0.005913]
[1722331921892,0.88792687,66909.0,66908.0,0.005913]
[1722331923410,1.03281458,66909.0,66908.0,0.005913]
[1722331923999,0.88792687,66909.0,66908.0,0.005913]
[1722331924231,0.86447521,66909.0,66908.0,0.005913]
[1722331924437,0.7751368,66909.0,66908.0,0.005913]
[1722331925020,0.77519106,66909.0,66908.0,0.005913]
[1722331925561,0.91439106,66909.0,66908.0,0.005913]
[1722331925754,1.34671051,66909.0,66908.0,0.005913]
[1722331925955,1.36664935,66909.0,66908.0,0.005913]
[1722331927436,2.02092883,66909.0,66908.0,0.005913]
[1722331927636,1.88255172,66909.0,66908.0,0.005913]
[1722331927825,2.00988007,66909.0,66908.0,0.005913]
[1722331928223,1.79856235,66909.0,66908.0,0.005913]
[1722331928425,1.85944934,66909.0,66908.0,0.005913]
[1722331928621,2.01020842,66909.0,66908.0,0.005913]
[1722331928828,1.85944934,66909.0,66908.0,0.005913]
[1722331930695,1.88290483,66909.0,66908.0,0.005913]
[1722331931690,1.88354314,66909.0,66908.0,0.005913]
[1722331932094,1.79690792,66909.0,66908.0,0.005913]
[1722331932290,1.88330384,66909.0,66908.0,0.005913]
[1722331933382,1.96000384,66909.0,66908.0,0.005913]
[1722331934973,1.9597491,66909.0,66908.0,0.005913]
[1722331937928,1.8830491,66909.0,66908.0,0.005913]
[1722331938139,1.9597491,66909.0,66908.0,0.005913]
[1722331939573,1.93629361,66909.0,66908.0,0.005913]
[1722331941680,1.93526909,66909.0,66908.0,0.005913]
[1722331942070,1.85015243,66909.0,66908.0,0.005913]
[1722331942274,1.93516165,66909.0,66908.0,0.005913]
[1722331942819,1.95861714,66909.0,66908.0,0.005913]
[1722331943359,2.25753014,66909.0,66908.0,0.005913]
[1722331944780,2.25770202,66909.0,66908.0,0.005913]
[1722331945433,2.40835659,66909.0,66908.0,0.005913]
[1722331946190,2.40835659,66909.0,66897.0,0.0079133]
[1722331946191,1.644291,66898.0,66897.0,0.0079133]
[1722331946445,1.644291,66898.0,66896.0,0.009251]
[1722331946446,0.59965,66897.0,66896.0,0.009251]
[1722331946653,1.32661988,66897.0,66896.0,0.009251]
[1722331946859,1.65561217,66897.0,66896.0,0.009251]
[1722331947054,1.92294062,66897.0,66896.0,0.009251]
[1722331947211,1.65561217,66897.0,66896.0,0.009251]
[1722331947411,1.33364517,66897.0,66896.0,0.009251]
[1722331947609,1.26914517,66897.0,66896.0,0.009251]
[1722331948849,1.27814517,66897.0,66896.0,0.009251]
[1722331949054,1.26914517,66897.0,66896.0,0.009251]
[1722331949290,1.19424431,66897.0,66896.0,0.009251]
[1722331949465,1.34652338,66897.0,66896.0,0.009251]
[1722331949680,1.36998292,66897.0,66896.0,0.009251]
[1722331949885,1.36498292,66897.0,66896.0,0.009251]
[1722331950098,1.67294992,66897.0,66896.0,0.009251]
[1722331950292,1.81814992,66897.0,66896.0,0.009251]
[1722331950503,1.84114992,66897.0,66896.0,0.009251]
[1722331950724,1.97510583,66897.0,66896.0,0.009251]
[1722331951048,1.97511031,66897.0,66896.0,0.009251]
[1722331951252,1.81761594,66897.0,66896.0,0.009251]
[1722331951547,1.95157621,66897.0,66896.0,0.009251]
[1722331951754,1.93022791,66897.0,66896.0,0.009251]
[1722331951961,1.95157622,66897.0,66896.0,0.009251]
[1722331953539,1.9518516,66897.0,66896.0,0.009251]
[1722331954334,1.9753115,66897.0,66896.0,0.009251]
[1722331954535,1.95191716,66897.0,66896.0,0.009251]
[1722331955158,1.47925584,66897.0,66896.0,0.009251]
[1722331955371,1.20511345,66897.0,66896.0,0.009251]
[1722331957354,1.22857335,66897.0,66896.0,0.009251]
[1722331957763,1.22896184,66897.0,66896.0,0.009251]
[1722331957969,1.20550194,66897.0,66896.0,0.009251]
[1722331958196,1.35619626,66897.0,66896.0,0.009251]
[1722331960919,1.380069,66897.0,66896.0,0.009251]
[1722331961100,1.3566091,66897.0,66896.0,0.009251]
[1722331961309,1.33410094,66897.0,66896.0,0.009251]
[1722331961504,1.35660781,66897.0,66896.0,0.009251]
[1722331964232,1.35681142,66897.0,66896.0,0.009251]
[1722331964434,1.51425804,66897.0,66896.0,0.009251]
[1722331964872,1.49079814,66897.0,66896.0,0.009251]
[1722331967529,1.49084739,66897.0,66896.0,0.009251]
[1722331967789,1.38027404,66897.0,66896.0,0.009251]
[1722331968122,1.4908649,66897.0,66896.0,0.009251]
[1722331968335,1.35681414,66897.0,66896.0,0.009251]
[1722331970703,1.42385207,66897.0,66896.0,0.009251]
[1722331970841,1.68257505,66897.0,66896.0,0.009251]
[1722331971057,1.61251416,66897.0,66896.0,0.009251]
[1722331971279,1.90735341,66897.0,66896.0,0.009251]
[1722331971498,1.9647103,66897.0,66896.0,0.009251]
[1722331973152,1.96479705,66897.0,66896.0,0.009251]
[1722331973777,1.96563705,66897.0,66896.0,0.009251]
[1722331974174,1.96526706,66897.0,66896.0,0.009251]
[1722331974787,1.64330006,66897.0,66896.0,0.009251]
[1722331975591,1.66675996,66897.0,66896.0,0.009251]
[1722331975787,1.94226706,66897.0,66896.0,0.009251]
[1722331976060,1.64330006,66897.0,66896.0,0.009251]
[1722331976397,1.94226706,66897.0,66896.0,0.009251]
[1722331977343,1.86173351,66897.0,66896.0,0.009251]
[1722331977548,1.96553632,66897.0,66896.0,0.009251]
[1722331978538,1.98899622,66897.0,66896.0,0.009251]
[1722331978887,1.96553632,66897.0,66896.0,0.009251]
[1722331979951,1.96618264,66897.0,66896.0,0.009251]
[1722331980531,1.88473351,66897.0,66896.0,0.009251]
[1722331980729,1.96611335,66897.0,66896.0,0.009251]
[1722331981222,1.88473351,66897.0,66896.0,0.009251]
[1722331981373,1.96611369,66897.0,66896.0,0.009251]
[1722331981774,1.98957377,66897.0,66896.0,0.009251]
[1722331982582,1.98457377,66897.0,66896.0,0.009251]
[1722331982990,1.98411736,66897.0,66896.0,0.009251]
[1722331983186,1.99606736,66897.0,66896.0,0.009251]
[1722331983385,1.96460728,66897.0,66896.0,0.009251]
[1722331983774,1.97260728,66897.0,66896.0,0.009251]
[1722331983980,2.30157428,66897.0,66896.0,0.009251]
[1722331985064,2.28957428,66897.0,66896.0,0.009251]
[1722331985437,2.29557428,66897.0,66896.0,0.009251]
[1722331986004,2.30957428,66897.0,66896.0,0.009251]
[1722331986204,2.28157428,66897.0,66896.0,0.009251]
[1722331986410,2.27157428,66897.0,66896.0,0.009251]
[1722331986620,2.15134091,66897.0,66896.0,0.009251]
[1722331986819,1.86237391,66897.0,66896.0,0.009251]
[1722331987048,1.82891296,66897.0,66896.0,0.009251]
[1722331987485,2.13787996,66897.0,66896.0,0.009251]
[1722331987945,1.82891296,66897.0,66896.0,0.009251]
[1722331988064,2.28857428,66897.0,66896.0,0.009251]
[1722331988270,2.29782528,66897.0,66896.0,0.009251]
[1722331988492,1.84816396,66897.0,66896.0,0.009251]
[1722331989557,1.84724388,66897.0,66896.0,0.009251]
[1722331989900,1.8707227,66897.0,66896.0,0.009251]
[1722331990422,1.84726175,66897.0,66896.0,0.009251]
[1722331991010,1.83661618,66897.0,66896.0,0.009251]
[1722331992117,1.59461618,66897.0,66896.0,0.009251]
[1722331992327,1.37234918,66897.0,66896.0,0.009251]
[1722331992540,1.31404806,66897.0,66896.0,0.009251]
[1722331992747,1.31428667,66897.0,66896.0,0.009251]
[1722331993168,1.44780125,66897.0,66896.0,0.009251]
[1722331993370,1.45580115,66897.0,66896.0,0.009251]
[1722331993862,1.60665529,66897.0,66896.0,0.009251]
[1722331994065,1.30928657,66897.0,66896.0,0.009251]
[1722331994468,1.3187463,66897.0,66896.0,0.009251]
[1722331994919,1.30728657,66897.0,66896.0,0.009251]
[1722331995930,1.28432762,66897.0,66896.0,0.009251]
[1722331996045,1.30796393,66897.0,66896.0,0.009251]
[1722331997874,1.33142366,66897.0,66896.0,0.009251]
[1722331998499,1.47964881,66897.0,66896.0,0.009251]
[1722332001640,1.4801045,66897.0,66896.0,0.009251]
[1722332001844,1.33187935,66897.0,66896.0,0.009251]
[1722332002626,1.33201702,66897.0,66896.0,0.009251]
[1722332003059,1.30778735,66897.0,66896.0,0.009251]
[1722332003268,1.33192995,66897.0,66896.0,0.009251]
[1722332003623,1.33192995,66897.0,66896.0,0.143751]
[1722332004235,0.92371195,66897.0,66896.0,0.143751]
[1722332005046,1.22267895,66897.0,66896.0,0.143751]
[1722332005715,1.19853635,66897.0,66896.0,0.143751]
[1722332005920,1.22354418,66897.0,66896.0,0.143751]
[1722332006771,0.92457718,66897.0,66896.0,0.143751]
[1722332007144,1.22354418,66897.0,66896.0,0.143751]
[1722332007344,0.92457718,66897.0,66896.0,0.009251]
[1722332007595,1.36097619,66897.0,66896.0,0.009251]
[1722332009132,1.36102758,66897.0,66896.0,0.009251]
[1722332010407,1.22359557,66897.0,66896.0,0.009251]
[1722332013035,1.22349883,66897.0,66896.0,0.009251]
[1722332015781,1.22351953,66897.0,66896.0,0.009251]
[1722332019103,1.22371531,66897.0,66896.0,0.009251]
[1722332022814,1.19853635,66897.0,66896.0,0.009251]
[1722332023017,1.35759994,66897.0,66896.0,0.009251]
[1722332025632,1.35706202,66897.0,66896.0,0.009251]
[1722332025835,1.41700868,66897.0,66896.0,0.009251]
[1722332026239,1.41700868,66897.0,66896.0,0.143751]
[1722332026240,0.3695279,66897.0,66896.0,0.143751]
[1722332026442,0.04710117,66897.0,66896.0,0.143751]
[1722332026649,0.17212214,66897.0,66896.0,0.15214629]
[1722332026842,0.77005614,66897.0,66896.0,0.01764629]
[1722332027025,0.79381005,66897.0,66896.0,0.01764629]
[1722332027243,0.97829845,66897.0,66896.0,0.009251]
[1722332027610,1.28626545,66897.0,66896.0,0.009251]
[1722332027817,1.18792937,66897.0,66896.0,0.009251]
[1722332027989,1.29960644,66897.0,66896.0,0.009251]
[1722332028194,1.29160644,66897.0,66896.0,0.009251]
[1722332028623,1.29660644,66897.0,66896.0,0.009251]
[1722332028827,1.18506346,66897.0,66896.0,0.009251]
[1722332029127,1.29171371,66897.0,66896.0,0.009251]
[1722332029332,1.29171371,66897.0,66896.0,0.010251]
[1722332029333,0.99274671,66897.0,66896.0,0.010251]
[1722332029624,1.01720558,66897.0,66896.0,0.010251]
[1722332029769,0.79840301,66897.0,66896.0,0.009251]
[1722332029968,0.79740301,66897.0,66896.0,0.009251]
[1722332030380,0.79740301,66897.0,66896.0,0.064651]
[1722332031175,0.79840301,66897.0,66896.0,0.065651]
[1722332031382,0.91005326,66897.0,66896.0,0.065651]
[1722332031783,0.79840301,66897.0,66896.0,0.065651]
[1722332032249,0.88617544,66897.0,66896.0,0.065651]
[1722332032417,0.9105881,66897.0,66896.0,0.065651]
[1722332034839,0.6116211,66897.0,66896.0,0.065651]
[1722332034953,0.3126541,66897.0,66896.0,0.143451]
[1722332035158,0.3126541,66897.0,66896.0,0.15183228]
[1722332035361,0.17658101,66897.0,66896.0,0.15183228]
[1722332035565,0.31292136,66897.0,66896.0,0.15183228]
[1722332036126,0.05173897,66897.0,66896.0,0.15183228]
[1722332036262,0.02709801,66897.0,66896.0,0.22717944]
[1722332037315,0.02709801,66897.0,66896.0,0.37666444]
[1722332037959,0.1387974,66897.0,66896.0,0.22717944]
[1722332038151,0.02709801,66897.0,66896.0,0.22717944]
[1722332038345,0.1387974,66897.0,66896.0,0.22717944]
[1722332038703,0.28829347,66897.0,66896.0,0.22717944]
[1722332039687,0.17658101,66897.0,66896.0,0.22717944]
[1722332040520,0.17758101,66897.0,66896.0,0.22717944]
[1722332041145,0.17758101,66897.0,66896.0,0.22617944]
[1722332041146,0.17658101,66897.0,66896.0,0.22617944]
[1722332041525,0.15412214,66897.0,66896.0,0.23317944]
[1722332044775,0.00463914,66897.0,66896.0,0.23317944]
[1722332045196,0.09399301,66897.0,66896.0,0.38266444]
[1722332045527,0.09399301,66897.0,66896.0,0.68163544]
[1722332046004,0.09399301,66897.0,66896.0,0.38266444]
[1722332046563,0.24347601,66897.0,66896.0,0.23317944]
[1722332046918,0.15412214,66897.0,66896.0,0.17777944]
[1722332047092,0.24347273,66897.0,66896.0,0.09997944]
[1722332047435,0.15412214,66897.0,66896.0,0.09997944]
[1722332047687,0.45308914,66897.0,66896.0,0.09997944]
[1722332048107,0.45308914,66897.0,66896.0,0.02463228]
[1722332048108,0.9748341,66897.0,66896.0,0.02463228]
[1722332048306,1.2738011,66897.0,66896.0,0.016251]
[1722332050907,1.24902407,66897.0,66896.0,0.016251]
[1722332051116,1.27408445,66897.0,66896.0,0.016251]
[1722332051535,1.24902407,66897.0,66896.0,0.016251]
[1722332051799,1.27409704,66897.0,66896.0,0.016251]
[1722332052866,1.29537638,66897.0,66896.0,0.016251]
[1722332053491,1.29536553,66897.0,66896.0,0.016251]
[1722332054307,1.295369,66897.0,66896.0,0.016251]
[1722332055583,1.2013256,66897.0,66896.0,0.016251]
[1722332057480,1.17626001,66897.0,66896.0,0.016251]
[1722332057676,1.26709576,66897.0,66896.0,0.016251]
[1722332058236,0.88094942,66897.0,66896.0,0.016251]
[1722332058801,0.80044942,66897.0,66896.0,0.016251]
[1722332059614,0.50148242,66897.0,66896.0,0.016251]
[1722332059814,0.50148242,66897.0,66896.0,0.02448632]
[1722332060190,0.80044942,66897.0,66896.0,0.016251]
[1722332060895,0.80025919,66897.0,66896.0,0.016251]
[1722332061299,0.77551367,66897.0,66896.0,0.016251]
[1722332061543,0.80019175,66897.0,66896.0,0.016251]
[1722332063050,0.50122475,66897.0,66896.0,0.016251]
[1722332063298,0.50122475,66897.0,66896.0,0.02448632]
[1722332063990,0.80019175,66897.0,66896.0,0.02448632]
[1722332064183,0.50122475,66897.0,66896.0,0.02448632]
[1722332064387,0.50122475,66897.0,66896.0,0.016251]
[1722332067640,0.55324667,66897.0,66896.0,0.016251]
[1722332067841,0.20214835,66897.0,66896.0,0.016251]
[1722332068151,0.50111535,66897.0,66896.0,0.15898632]
[1722332069084,0.47654667,66897.0,66896.0,0.15898632]
[1722332069285,0.11239988,66897.0,66896.0,0.15898632]
[1722332069480,0.11239988,66897.0,66896.0,0.016251]
[1722332069481,0.41136688,66897.0,66896.0,0.016251]
[1722332069709,0.71033388,66897.0,66896.0,0.02448632]
[1722332070592,0.71116388,66897.0,66896.0,0.02448632]
[1722332070914,0.71116388,66897.0,66896.0,0.016251]
[1722332071086,0.41219688,66897.0,66896.0,0.016251]
[1722332076122,0.43565447,66897.0,66896.0,0.016251]
[1722332076352,0.41219688,66897.0,66896.0,0.016251]
[1722332078765,0.41219688,66897.0,66896.0,0.02447877]
[1722332079033,0.43565443,66897.0,66896.0,0.02447877]
[1722332079260,0.82104184,66897.0,66896.0,0.02447877]
[1722332079952,0.82104184,66897.0,66896.0,0.016251]
[1722332080196,1.22318818,66897.0,66896.0,0.016251]
[1722332080924,1.22337083,66897.0,66896.0,0.016251]
[1722332081394,1.22337033,66897.0,66896.0,0.016251]
[1722332083626,1.35752587,66897.0,66896.0,0.016251]
[1722332083826,0.59491253,66897.0,66896.0,0.016251]
[1722332084045,0.13833244,66897.0,66896.0,0.016251]
[1722332084251,0.13833244,66897.0,66896.0,0.09159816]
[1722332084252,0.02593256,66897.0,66896.0,0.09159816]